Cogmind - Beta 13 @@@ ROGUE MODE // 2024.04.21 @ 16:59:07 Player: LEWiKK Result: Destroyed by G-34 Mercenary with Small Laser Performance ------------- Evolutions (0) 0 Regions Visited (1) 200 Robots Destroyed (8) 40 Value Destroyed (318) 318 Prototype IDs (0) 0 Alien Tech Used (0) 0 Bonus (0) 0 TOTAL SCORE: 558 Bonus ------- None Cogmind --------- Core Integrity 0/250 Matter 300/300 Energy 95/100 System Corruption 0% Temperature Cool (6) Movement Walking (120) Location -10/Materials Parts ------- > --- POWER (1) -------- (None) > --- PROPULSION (2) --- Aluminum Leg Aluminum Leg > --- UTILITY (2) ------ Small Storage Unit Utility Shielding > --- WEAPON (2) ------- Medium Laser > --- INVENTORY (8) ---- Light Treads Light Treads Aluminum Leg Aluminum Leg Aluminum Leg Flight Unit ECM Suite Small Laser Peak State ------------ > --- POWER ------------ Light Ion Engine > --- PROPULSION ------- Aluminum Leg Aluminum Leg > --- UTILITY ---------- Small Storage Unit Utility Shielding > --- WEAPON ----------- EM Pulse Gun Assault Rifle > --- INVENTORY -------- Light Treads Light Treads Aluminum Leg Aluminum Leg Wheel Compact Wheel Medium Laser [Rating: 7] Favorites ----------- Power Ion Engine Engine Ion Engine Propulsion Aluminum Leg Leg Aluminum Leg Utility Small Storage Unit Storage Small Storage Unit Protection Utility Shielding Weapon Assault Rifle Energy Gun EM Pulse Gun Ballistic Gun Assault Rifle Build | -11 -10 ------- Run | Yrd Mat Slots Evolved . | . . Power . | . . Propulsion . | . . Utility . | . . Weapon . | . . Parts Attached 6 | . 6 Power 1 | . 1 Engine 1 | . 1 Core . | . . Reactor . | . . Propulsion 2 | . 2 Treads . | . . Leg 2 | . 2 Wheel . | . . Hover . | . . Flight . | . . Utility 1 | . 1 Device . | . . Storage . | . . Processor . | . . Hackware . | . . Protection 1 | . 1 Artifact . | . . Weapon 2 | . 2 Energy Gun 2 | . 2 Energy Cannon . | . . Ballistic Gun . | . . Ballistic Cannon . | . . Launcher . | . . Special Weapon . | . . Impact Weapon . | . . Slashing Weapon . | . . Piercing Weapon . | . . Special Melee Weapon . | . . Unidentified Prototypes . | . . Parts Lost 7 | . 7 Power 2 | . 2 Propulsion 2 | . 2 Utility . | . . Weapon 3 | . 3 Highest Loss Streak 5 | . 5 To Critical Strikes . | . . Average Slot Usage (%) 83 | . 83 Engine 9 | . 9 Leg 28 | . 28 Storage 14 | . 14 Protection 6 | . 6 Energy Gun 13 | . 13 Ballistic Gun 10 | . 10 Naked Turns . | . . Heaviest Build 14 | 14 14 Greatest Support 20 | 20 20 Greatest Overweight (x) . | . . Average Overweight (x) . | . . Largest Inventory Capacity 8 | . 8 Average Capacity 8 | . 8 Most Carried 8 | . 8 Average Carried 6 | . 6 Final Capacity 8 | 8 8 Final Carried 8 | 6 8 Class Distribution -------------------- 100% | Mutant Dominant Class ---------------- Mutant | -10/Materials Resources | -11 -10 ----------- Run | Yrd Mat Matter Collected 298 | 200 98 Remotely . | . . Salvage Created 301 | . 301 Parts 12 | . 12 Haulers Intercepted . | . . Recyclers Shooed . | . . Parts Field Recycled . | . . Retrieved Matter . | . . Parts Self-Destructed . | . . Prevented . | . . Kills | -11 -10 ------- Run | Yrd Mat Combat Hostiles Destroyed 7 | . 7 Guns 5 | . 5 AOE 1 | . 1 Classes Destroyed 2 | . 2 Tunneler 1 | . 1 Grunt 7 | . 7 Best Kill Streak 3 | . 3 Combat Bots Only 2 | . 2 Max Kills in Single Turn 2 | . 2 Gunslinging . | . . Exploded 1 | . 1 Melee . | . . Uniques/NPCs Destroyed . | . . Combat | -11 -10 -------- Run | Yrd Mat Hostile Shots Fired 83 | . 83 Missed 18 | . 18 Damage Taken 934 | . 934 Core 259 | . 259 Absorbed by Shields . | . . Redirected to Shielding 15 | . 15 Core Remaining (%) 100 | 100 . Volleys Fired 43 | . 43 Largest 2 | . 2 Hottest 70 | . 70 Shots Fired 60 | . 60 Gun 60 | . 60 Cannon . | . . Launcher . | . . Special . | . . Kinetic 17 | . 17 Thermal 35 | . 35 Explosive . | . . Electromagnetic 8 | . 8 Robot Hit Streak 13 | . 13 Robot Miss Streak 2 | . 2 Penetration Max . | . . Secondary Targets 1 | . 1 Max Gunslinging Chain 1 | . 1 Shots Hit Robots 48 | . 48 Core Hits 17 | . 17 Critical Kills . | . . Critical Parts Destroyed . | . . Critical Strikes 5 | . 5 Burn 3 | . 3 Corrupt 2 | . 2 Melee Attacks . | . . Impact . | . . Slashing . | . . Piercing . | . . Sneak Attacks . | . . Combat Hostiles . | . . Follow-up Attacks . | . . Damage Inflicted 904 | . 904 Guns 628 | . 628 Cannons . | . . Explosions 275 | . 275 Melee . | . . Ramming 1 | . 1 Kinetic 146 | . 146 Thermal 650 | . 650 Explosive . | . . Electromagnetic 107 | . 107 Impact . | . . Slashing . | . . Piercing . | . . Highest Corruption . | . . Average Corruption . | . . Corruption Purged . | . . Corruption Blocked . | . . Overload Shots . | . . Overflow Damage . | . . Projectiles . | . . Explosions . | . . Melee . | . . Knockbacks . | . . Impact . | . . Kinetic . | . . Secondary . | . . Self-Inflicted Damage 110 | . 110 Shots 3 | . 3 Rammed . | . . Targets Rammed 1 | . 1 Kicked 1 | . 1 Crushed . | . . Highest Temperature 178 | . 178 Average Temperature 88 | . 88 Received Heat Transfer 417 | . 417 Siege Activations . | . . Robots Corrupted . | . . Combat Hostiles . | . . Parts Fried . | . . Impact Corruptions . | . . Robots Melted 1 | . 1 Combat Hostiles 1 | . 1 Parts Melted 1 | . 1 Heat Transferred 1732 | . 1732 Parts Sabotaged . | . . Parts Stolen . | . . Parts Stripped . | . . Power Chain Reactions 3 | . 3 Alert | -11 -10 ------- Run | Yrd Mat Peak Influence 133 | . 133 Initial . | . . Average 69 | . 69 Maximum Alert Level . | . . Low Security (%) 100 | . 100 Level 1 . | . . Level 2 . | . . Level 3 . | . . Level 4 . | . . Level 5 . | . . High Security . | . . Max Security . | . . Squads Dispatched 3 | . 3 Investigation 3 | . 3 Extermination . | . . Reinforcement . | . . Assault . | . . Garrison . | . . Intercept . | . . Searches Triggered . | . . Construction Impeded . | . . Haulers Reinforced . | . . Active Scanning Responses . | . . Cargo Convoy Interrupts . | . . Stealth | -11 -10 --------- Run | Yrd Mat Distress Signals 1 | . 1 Communications Jammed . | . . Distress Signals . | . . Times Spotted 13 | . 13 Peak Tracking Total 4 | . 4 Tactical Retreats 1 | . 1 Traps | -11 -10 ------- Run | Yrd Mat Traps Triggered 2 | . 2 Indirectly . | . . Trap Hack Attempts . | . . Triggered . | . . Disarmed . | . . Reprogrammed . | . . Reused . | . . Traps Extracted . | . . Installed . | . . Triggered . | . . Machines | -11 -10 ---------- Run | Yrd Mat Machines Disabled . | . . Max in Single Turn . | . . Machines Repaired . | . . Machines Dismantled . | . . Machines Sabotaged 1 | . 1 Overloaded Fab Kills . | . . Hacking | -11 -10 --------- Run | Yrd Mat Machines Accessed 5 | . 5 Terminals 5 | . 5 Fabricators . | . . Repair Stations . | . . Recycling Units . | . . Scanalyzers . | . . Garrison Access . | . . Total Hacks 16 | . 16 Successful 9 | . 9 Failed 7 | . 7 Catastrophic 1 | . 1 Database Lockouts . | . . Manual 9 | . 9 Terminals 16 | . 16 Fabricators . | . . Repair Stations . | . . Recycling Units . | . . Scanalyzers . | . . Garrison Access . | . . Terminal Hacks 3 | . 3 Emergency Access Points 1 | . 1 Locate Traps 1 | . 1 Recall Investigation 1 | . 1 Fabricator Hacks . | . . Repair Station Hacks . | . . Recycling Unit Hacks . | . . Scanalyzer . | . . Garrison Access Hacks . | . . Unauthorized Hacks 6 | . 6 Terminals 6 | . 6 Botnet 4 | . 4 Sabotage 2 | . 2 Fabricators . | . . Repair Stations . | . . Recycling Units . | . . Scanalyzers . | . . Garrison Access . | . . Data Cores Recovered . | . . Used . | . . Hacking Detections 4 | . 4 Full Trace Events . | . . Feedback Events . | . . Feedback Blocked . | . . Robot Schematics Acquired . | . . Robots Built . | . . Authchips . | . . Time . | . . Total Robot Build Rating . | . . Part Schematics Acquired . | . . Parts Built . | . . Authchips . | . . Time . | . . Total Part Build Rating . | . . Parts Repaired . | . . Time . | . . Parts Recycled . | . . Recycled Matter . | . . Retrieved Matter . | . . Retrieved Components . | . . Parts Scanalyzed . | . . Part Schematics Acquired . | . . Parts Damaged . | . . Bothacking | -11 -10 ------------ Run | Yrd Mat Used RIF Installer . | . . Robots Hacked . | . . Non-combat . | . . Combat . | . . Robot Hacks Applied . | . . Relay Couplers Released . | . . Fabnet Peak Effective % . | . . Robots Rewired . | . . Allies Hacked . | . . Hacks Repelled . | . . Allies | -11 -10 -------- Run | Yrd Mat Total Allies . | . . Largest Group . | . . Highest-Rated Group . | . . Highest-Rated Ally . | . . Total Orders . | . . Ally Attacks . | . . Total Damage . | . . Kills . | . . Allies Corrupted . | . . Allies Melted . | . . Intel | -11 -10 ------- Run | Yrd Mat Robot Analysis Total . | . . Derelict Logs Recovered . | . . Drone Launches . | . . Drone Recoveries . | . . Exploration | -11 -10 ------------- Run | Yrd Mat Turns Passed 612 | . 612 Spaces Moved 335 | 1 334 Core . | . . Treads . | . . Legs 335 | 1 334 Wheels . | . . Hover . | . . Flight . | . . Fastest Speed 120 | 120 120 Average Speed 120 | 120 120 Slowest Speed 120 | 120 120 Overloaded Moves . | . . Propulsion Burnouts . | . . Robots Hopped . | . . Cave-ins Triggered . | . . Exploration Rate (%) 30 | 1 59 Regions Visited 1 Branch Regions . Pre-discovered Areas . | . . Known Exits Taken . | . . Unknown Exits Taken 1 | 1 . Scrap Searched . | . . Spaces Dug . | . . Terrain Destroyed 19 | . 19 Melee . | . . Projectile . | . . AOE 19 | . 19 Terrain Rammed . | . . Walls Destroyed . | . . Machines Disabled . | . . Actions | -11 -10 --------- Run | Yrd Mat Total 487 | . 487 Wait 91 | . 91 Move 334 | . 334 Hop . | . . Pick Up 10 | . 10 Fast Attach . | . . Attach 6 | . 6 Detach . | . . Swap . | . . Drop 2 | . 2 Fire 43 | . 43 Melee . | . . Ram . | . . Kick 1 | . 1 Crush . | . . Escape Stasis . | . . Rewire . | . . Trap . | . . Miscellaneous . | . . Route ------- -11/Scrapyard -10/Materials (discovered 2 exits: [*Mat] / [*Min]) History --------- Turn | Location | Event 1 | -11/Scrapyard | Discovered new exit (range 0) 1 | -11/Scrapyard | Entered Materials 125 | -10/Materials | Discovered new exit (range 16) 269 | -10/Materials | Discovered new exit (range 4) 305 | -10/Materials | Build established: Mutant 482 | -10/Materials | Core integrity fell below 50% 500 | -10/Materials | Core integrity fell below 20% 557 | -10/Materials | Lost 5 parts (1p2n2w) 613 | -10/Materials | Destroyed by G-34 Mercenary with Small Laser Last Messages --------------- M-13 Machinist repairs G-34 Mercenary. Melted Aluminum Leg. G-34 Mercenary overheating. Kicked G-34 Mercenary. G-34 Mercenary overheating. G-34 Mercenary heat damages Heat Sink. M-13 Machinist repairs Heat Sink. G-34 Mercenary overheating. G-34 Mercenary critical meltdown. Acquired 18 matter. Med. Laser destroyed. M-13 Machinist repairs Ion Engine. M-13 Machinist repairs Sml. Laser. Acquired Med. Laser. G-34 Mercenary destroyed. Acquired Sml. Laser. Acquired 10 matter. K-01 Serf collects debris. Acquired Aluminum Leg. G-34 Mercenary suffers critical hit (Burn). Map ----- +----------------------------------------------------+ | | | | | | | | | | | ?#####??????????????????????????????????????????? | | # ??????????????????????????????????????????? | | # #?????????????????????????????????????????? | | # #???######????????????????????????????????? | | # #???# #????????????????????????????????? | | # #???# #????????????????????????????????? | | # #???# #????????????????????????????????? | | # #???# #????????????????????????????????? | | # #???# #????????????????????????????????? | | # ##### #????????????????????????????????? | | # # # #????????????????????????????????? | | # # < # #????????????????????????????????? | | # # # ##################???????????????? | | ###+### #/### # #???????????????? | | # ""#???????????????? | | # Y"#???????????????? | | # ""#???????????????? | | ########/######## # #???????????????? | | ?????? ???????## "# #??##########???? | | ????? ?????????# "# #??# ! !#???? | | ???? """?????????# "# @ k #??# #???? | | ??# ""??????????# #####g######### #???? | | ??# ""??????????# #% #???? | | ??? ?????????????# %+! """ #???? | | ??#??????????????# # """ #???? | | ???????????############## ###### # """ #???? | | ???????????# ! ## #????# # """ #???? | | ???????????# ## #????# # %= #???? | | ???????????# """ """ ## #????# ##########???? | | ???????????# """ """ ## #????# #????????????? | | ???????????# """ """ ## #????# #????????????? | | ???????????# ==## ##???# #????????????? | | ???????????###+###+##### #???? ?????????????? | | ?????????????# "" #???? ?????????????? | | ?????????????# T #???? ?????????????? | | ?????????????# ###?? ?????????????? | | ?????????????# #### =[ " #?? ?????????????? | | ?????????????# #??###"#%" #?? ?????????????? | | ?????????????# #????##" " #?? ?????????????? | | ?????????????# #????# #%# #????????????????? | | ?????????????# #????### ###????????????????? | | ?????????????# #??????# #??????????????????? | | ?????????????# #??????# #??????????????????? | | ?????????????# #??????# #??????????????????? | | ????????????? #??????# #??????????????????? | +----------------------------------------------------+ Best States ------------- Heat Dissipation 25 Energy Generation 10 Energy Capacity 250 Matter Stores 300 Matter Capacity 300 Sight Range 16 Terrain Scan Density 10 Utility Shielding 33 Evasion (%) 55 Item Schematics ----------------- None Robot Schematics ------------------ None Fabricated ------------ Nothing Alien Tech Used ----------------- None Achievements -------------- None Challenges ------------ None Game ------ Seed HugeTimingExoskeleton Manual? 0 Play Time 00:08:20 Cumulative 34.0 hours Start 2024.04.21 @ 16:50:50 End 2024.04.21 @ 16:59:07 Sessions 1 Manual Loads 0 Difficulty Rogue Special Mode None Game No. 36 Rogue 36 Adventurer 0 Explorer 0 Win Type - Total 0 Types 0/0/0/0/0/0/0/0/0 Lore% 34 Gallery% 24 Achievement% 27 Wizard Run 0 Options --------- Layout 1 ASCII 0 Keyboard 0 Movement Mouse Keybinds 0 Fullscreen 2 Font 20/SmallcapsGlow Map View 54x42 Zoom Use 0% Tactical HUD 0 Map Filters NONE Filters NONE Steam 1 RUN: 357df1f2-427b-4527-b69b-87b369246d5f